fUST/lending_fUST_20260316
["ID","MTS","AMOUNT","RATE_DAILY","PERIOD"]
[408448645,1773649832574,-416.9208899,8.424e-05,2]
[408448646,1773649832584,-429.87556314,8.424e-05,2]
[408448673,1773649837710,-5000.0,8.34e-05,2]
[408448675,1773649837721,-70.12443686,8.424e-05,2]
[408448677,1773649837732,-167.70130002,8.424e-05,2]
[408448679,1773649837744,-500.0,8.424e-05,2]
[408448681,1773649837754,-500.0,8.424e-05,2]
[408448683,1773649837772,-500.0,8.424e-05,2]
[408448685,1773649837783,-500.0,8.424e-05,2]
[408448687,1773649837796,-500.0,8.424e-05,2]
[408448689,1773649837819,-151.0,8.424e-05,2]
[408448691,1773649837829,-2174.54490964,8.425e-05,2]
[408448696,1773649837859,-47825.45509036,8.425e-05,2]
[408448698,1773649837872,-300.0,8.425e-05,2]
[408448702,1773649837886,-300.0,8.425e-05,2]
[408448704,1773649837897,-300.0,8.425e-05,2]
[408448705,1773649837908,-300.0,8.425e-05,2]
[408448707,1773649837919,-300.0,8.425e-05,2]
[408448710,1773649837931,-300.0,8.425e-05,2]
[408448712,1773649837941,-300.0,8.425e-05,2]
[408448714,1773649837952,-300.0,8.425e-05,2]
[408448716,1773649837962,-300.0,8.425e-05,2]
[408448718,1773649837978,-300.0,8.425e-05,2]
[408448720,1773649837989,-300.0,8.425e-05,2]
[408448722,1773649837999,-300.0,8.425e-05,2]
[408448724,1773649838009,-300.0,8.425e-05,2]
[408448726,1773649838018,-300.0,8.425e-05,2]
[408448728,1773649838027,-300.0,8.425e-05,2]
[408448730,1773649838037,-151.0,8.425e-05,2]
[408448732,1773649838052,-600.0,8.592e-05,2]
[408448734,1773649838062,-500.0,8.698e-05,2]
[408448736,1773649838072,-500.0,8.972e-05,2]
[408448738,1773649838082,-1657.44524143,9.038e-05,2]
[408448740,1773649838092,-439.39126638,9.066e-05,2]
[408448741,1773649838101,-420.0,9.086e-05,2]
[408448744,1773649838111,-151.0,9.17e-05,2]
[408448746,1773649838121,-4231.79395687,9.17e-05,2]
[408448748,1773649838131,-527.64225575,9.24e-05,2]
[408448750,1773649838141,-500.0,9.246e-05,2]
[408448752,1773649838150,-720.0,9.452e-05,2]
[408448754,1773649838160,-500.0,9.52e-05,2]
[408448756,1773649838170,-1053.37331448,9.631e-05,2]
[408448758,1773649838181,-500.0,9.794e-05,2]
[408448760,1773649838191,-1808.63201957,9.9e-05,2]
[408448762,1773649838201,-158.0,9.994e-05,2]
[408448764,1773649838210,-500.0,0.00010068,2]
[408448766,1773649838220,-151.0,0.00010138,2]
[408448768,1773649838231,-248.98586,0.00010138,2]
[408448769,1773649838240,-359.52625799,0.00010194,2]
[408448771,1773649838250,-1344.68865127,0.00010233,2]
[408448773,1773649838260,-500.0,0.00010342,2]
[408448775,1773649838270,-864.0,0.00010397,2]
[408448778,1773649838280,-151.0,0.00010575,2]
[408448779,1773649838289,-151.0,0.00010575,2]
[408448781,1773649838300,-500.0,0.00010616,2]
[408448783,1773649838310,-151.0,0.00010639,2]
[408448785,1773649838319,-46859.4352627,0.0001064,2]
[408448787,1773649838328,-1976.2407272,0.0001064,2]
[408448789,1773649838338,-151.0,0.0001064,2]
[408448792,1773649838347,-847.4237446,0.0001064,2]
[408448794,1773649838357,-151.0,0.00010688,2]
[408448796,1773649838368,-151.0,0.00010688,2]
[408448798,1773649838378,-151.0,0.00010688,2]
[408448800,1773649838388,-151.0,0.00010688,2]
[408448802,1773649838397,-151.0,0.00010688,2]
[408448804,1773649838406,-151.0,0.00010688,2]
[408448806,1773649838416,-151.0,0.00010688,2]
[408448808,1773649838426,-151.0,0.00010688,2]
[408448810,1773649838435,-151.0,0.00010688,2]
[408448812,1773649838445,-206.31639597,0.00010688,2]
[408448814,1773649838454,-49916.61919758,0.00010694,2]
[408448816,1773649838464,-511.36635282,0.00010725,2]
[408448817,1773649838474,-500.0,0.0001089,2]
[408448820,1773649838483,-22530.05319594,0.00010915,2]
[408448822,1773649838493,-176.38373389,0.00010999,2]
[408448824,1773649838503,-174.82552561,0.00010999,2]
[408448826,1773649838512,-9942.99731248,0.00011,2]
[408448828,1773649838522,-50105.52806519,0.00011,2]
[408448830,1773649838533,-151.0,0.00011,2]
[408448832,1773649838543,-500.0,0.00011025,2]
[408448834,1773649838555,-281.70469839,0.00011036,2]
[408448836,1773649838564,-6787.68263163,0.00011055,2]
[408448838,1773649838574,-2946.26397022,0.00011078,2]
[408448840,1773649838583,-151.0,0.000111,2]
[408448842,1773649838593,-500.0,0.00011164,2]
[408448844,1773649838603,-555.29715712,0.00011175,2]
[408448846,1773649838612,-151.0,0.000112,2]
[408448848,1773649838622,-151.0,0.000113,2]
[408448850,1773649838631,-252.757454,0.00011313,2]
[408448852,1773649838641,-151.0,0.000114,2]
[408448854,1773649838650,-1000.0,0.00011437,2]
[408448856,1773649838659,-500.0,0.00011438,2]
[408448858,1773649838669,-1473.60490024,0.00011496,7]
[408448860,1773649838678,-151.0,0.000115,2]
[408448862,1773649838687,-151.0,0.000115,2]
[408448863,1773649838697,-352.01302187,0.00011576,2]
[408448865,1773649838706,-151.0,0.000116,2]
[408448867,1773649838716,-151.0,0.000116,2]
[408448869,1773649838726,-151.0,0.000117,2]
[408448871,1773649838737,-151.0,0.000117,2]
[408448874,1773649838746,-500.0,0.00011712,2]
[408448876,1773649838755,-252.757454,0.0001177,2]
[408448878,1773649838766,-151.0,0.000118,2]
[408448880,1773649838775,-151.0,0.000118,2]
[408448881,1773649838785,-151.0,0.000118,2]
[408448884,1773649838800,-468.07359132,0.00011852,7]
[408448886,1773649838812,-216.50465107,0.00011852,7]
[408448888,1773649838822,-207.00989142,0.00011866,2]
[408448890,1773649838831,-7486.43459392,0.0001188,2]
[408449022,1773649840210,-1167.33944032,0.0001188,2]
[408449096,1773649845621,-1071.17345952,0.0001188,2]
[408449097,1773649845728,-2149.33,0.0001188,2]
[408449098,1773649845931,-1467.0,0.0001188,2]
[408449106,1773649881428,-37.56062164,9.8e-05,2]
[408449107,1773649881477,-442.70514023,9.8e-05,2]
[408449113,1773650403037,162.21,2e-05,2]
[408449201,1773651031802,-1349.64553418,9.227e-05,2]
[408449208,1773651031857,-732.01,9.227e-05,2]
[408449345,1773651037947,-317.96272121,9.227e-05,2]
[408449352,1773651038000,-2600.38174461,9.227e-05,2]
[408449354,1773651038010,-551.0,9.32e-05,2]
[408449356,1773651038020,-2499.40144611,9.489e-05,2]
[408449358,1773651038029,-713.77990064,9.589e-05,2]
[408449445,1773651040374,-1000.0,9.589e-05,2]
[408449452,1773651040427,-882.70270732,9.589e-05,2]
[408449454,1773651040439,-1091.36838747,9.589e-05,2]
[408449488,1773651043008,-1363.98658968,9.589e-05,2]
[408449489,1773651043019,-2781.08805997,9.689e-05,2]
[408449490,1773651043032,-284.64068081,9.689e-05,2]
[408449491,1773651043112,-500.0,9.689e-05,2]
[408449492,1773651043124,-4038.54498332,9.689e-05,2]
[408449493,1773651043135,-300.0,9.78e-05,2]
[408449494,1773651043144,-300.0,9.78e-05,2]
[408449495,1773651043153,-300.0,9.78e-05,2]
[408449496,1773651043162,-300.0,9.78e-05,2]
[408449497,1773651043172,-200.45812969,9.78e-05,2]
[408449505,1773651045904,-686.84806561,9.682e-05,2]
[408449506,1773651045916,-43.58553135,9.682e-05,2]
[408449507,1773651045927,-99.54187031,9.78e-05,2]
[408449508,1773651045936,-300.0,9.78e-05,2]
[408449509,1773651045945,-80.87259834,9.78e-05,2]
[408449510,1773651045956,-219.12740166,9.78e-05,2]
[408449511,1773651045966,-300.0,9.78e-05,2]
[408449512,1773651045975,-300.0,9.78e-05,2]
[408449513,1773651045987,-300.0,9.78e-05,2]
[408449514,1773651045997,-300.0,9.78e-05,2]
[408449515,1773651046006,-300.0,9.78e-05,2]
[408449516,1773651046018,-300.0,9.78e-05,2]
[408449517,1773651046028,-300.0,9.78e-05,2]
[408449518,1773651046038,-300.0,9.78e-05,2]
[408449519,1773651046047,-5547.30186682,9.78e-05,2]
[408449520,1773651046063,-1462.4,9.78e-05,2]
[408449528,1773651602409,160.6,2e-05,2]
[408449536,1773651822778,-2824.37014346,2.178e-05,2]
[408449537,1773651822800,-160.6,2.2e-05,2]
[408449538,1773651822821,-2511.7314696,2.253e-05,2]
[408449580,1773652231897,-511.0,6.374e-05,2]
[408449582,1773652231907,-638.51863419,8.018e-05,2]
[408449584,1773652231917,-254.15144899,9.78e-05,2]
[408449900,1773652243252,-2474.99999999,9.78e-05,2]
[408449907,1773652246084,-3298.8864978,9.78e-05,2]
[408449908,1773652694090,168.254567,8.583e-05,120]
[408449909,1773652802337,161.2,2e-05,2]
[408449910,1773653094009,418.46895839,1.919e-05,2]
[408449911,1773653094550,418.46895839,1.958e-05,7]
[408449912,1773653095082,418.46895839,2.015e-05,14]
[408449925,1773653423956,-277.61747782,3.527e-05,2]
[408450079,1773653438229,-987.62829401,8.086e-05,2]
[408450080,1773653438285,-11.9065888,8.086e-05,2]
[408450081,1773653438294,-317.490721,8.512e-05,2]
[408450082,1773653438304,-168.254567,8.583e-05,2]
[408450083,1773653438313,-314.37126016,8.957e-05,2]
[408450084,1773653438322,-507.06845711,8.959e-05,2]
[408450085,1773653438331,-300.0,9.055e-05,2]
[408450086,1773653438341,-3197.1868004,9.056e-05,2]
[408450087,1773653438351,-233.2510769,9.056e-05,2]
[408450088,1773653438359,-8578.68239369,9.094e-05,2]
[408450089,1773653438371,-8618.72615753,9.094e-05,2]
[408450090,1773653438382,-8152.0700599,9.094e-05,2]
[408450091,1773653438393,-783.36581947,9.094e-05,2]
[408450092,1773653438405,-563.8635205,9.094e-05,2]
[408450093,1773653438415,-685.73990683,9.185e-05,2]
[408450094,1773653438427,-1089.43404505,9.185e-05,2]
[408450095,1773653438436,-300.0,9.236e-05,2]
[408450096,1773653438445,-288.18211484,9.236e-05,2]
[408450163,1773653440772,-11.81788516,9.236e-05,2]
[408450165,1773653440782,-300.0,9.236e-05,2]
[408450167,1773653440792,-300.0,9.236e-05,2]
[408450169,1773653440802,-300.0,9.236e-05,2]
[408450171,1773653440812,-300.0,9.236e-05,2]
[408450173,1773653440821,-300.0,9.236e-05,2]
[408450175,1773653440831,-300.0,9.236e-05,2]
[408450177,1773653440840,-300.0,9.236e-05,2]
[408450179,1773653440849,-300.0,9.236e-05,2]
[408450181,1773653440858,-300.0,9.236e-05,2]
[408450183,1773653440867,-300.0,9.236e-05,2]
[408450185,1773653440876,-300.0,9.236e-05,2]
[408450187,1773653440886,-203.49487214,9.236e-05,2]
[408450226,1773653479026,-935.38546244,9.144e-05,2]
[408450234,1773654002514,160.6,2e-05,2]
[408450235,1773654109384,300.79702957,3e-05,10]
[408450236,1773654109407,704.20297043,3e-05,10]
[408450315,1773654632258,-4199.55658805,2.113e-05,2]
[408450581,1773654638652,-800.44341195,2.113e-05,2]
[408450582,1773654638662,-160.6,2.2e-05,2]
[408450583,1773654638672,-900.55357982,7.597e-05,2]
[408450584,1773654638681,-747.56626907,7.863e-05,2]
[408450585,1773654638690,-318.796739,7.997e-05,2]
[408450586,1773654638701,-886.0,7.997e-05,2]
[408450587,1773654638712,-2525.36643003,7.997e-05,2]
[408450588,1773654638760,-253.19172798,7.997e-05,2]
[408450610,1773654640759,-204.79877109,7.997e-05,2]
[408450611,1773654640770,-1846.82002219,8.156e-05,2]
[408450612,1773654640780,-300.0,8.156e-05,2]
[408450613,1773654640791,-300.0,8.156e-05,2]
[408450614,1773654640801,-300.0,8.156e-05,2]
[408450615,1773654640810,-300.0,8.156e-05,2]
[408450616,1773654640820,-300.0,8.156e-05,2]
[408450617,1773654640829,-300.0,8.156e-05,2]
[408450618,1773654640839,-300.0,8.156e-05,2]
[408450619,1773654640849,-300.0,8.156e-05,2]
[408450620,1773654640858,-300.0,8.156e-05,2]
[408450621,1773654640868,-300.0,8.156e-05,2]
[408450622,1773654640878,-224.49481689,8.156e-05,2]
[408450623,1773654640898,-75.50518311,8.156e-05,2]
[408450624,1773654640908,-300.0,8.156e-05,2]
[408450625,1773654640918,-300.0,8.156e-05,2]
[408450626,1773654640928,-300.0,8.156e-05,2]
[408450627,1773654640938,-300.0,8.156e-05,2]
[408450628,1773654640949,-443.7611639,8.318e-05,2]
[408450629,1773654640960,-156.2388361,8.318e-05,2]
[408450630,1773654640970,-224.12370277,8.578e-05,2]
[408450631,1773654640982,-2173.76639753,8.578e-05,2]
[408450632,1773654640991,-4904.92716941,8.932e-05,2]
[408450633,1773654641002,-1188.4483435,9.032e-05,2]
[408450641,1773654643531,-2509.34647797,9.032e-05,2]
[408450642,1773654643638,-17408.93467287,9.032e-05,2]
[408450643,1773654643647,-1018.909987,9.044e-05,2]
[408450644,1773654643657,-410.16566978,9.13e-05,2]
[408450645,1773654643666,-500.0,9.13e-05,2]
[408450646,1773654643675,-500.0,9.13e-05,2]
[408450647,1773654643684,-500.0,9.13e-05,2]
[408450648,1773654643693,-508.46637778,9.13e-05,2]
[408450649,1773654643703,-500.0,9.13e-05,2]
[408450650,1773654643713,-500.0,9.13e-05,2]
[408450651,1773654643722,-500.0,9.13e-05,2]
[408450652,1773654643731,-500.0,9.13e-05,2]
[408450653,1773654643741,-500.0,9.13e-05,2]
[408450654,1773654643751,-500.0,9.13e-05,2]
[408450655,1773654643760,-500.0,9.13e-05,2]
[408450656,1773654643770,-500.0,9.13e-05,2]
[408450657,1773654643779,-500.0,9.13e-05,2]
[408450658,1773654643788,-500.0,9.13e-05,2]
[408450659,1773654643798,-500.0,9.13e-05,2]
[408450660,1773654643807,-500.0,9.13e-05,2]
[408450661,1773654643816,-500.0,9.13e-05,2]
[408450662,1773654643825,-500.0,9.13e-05,2]
[408450663,1773654643836,-500.0,9.13e-05,2]
[408450664,1773654643845,-500.0,9.13e-05,2]
[408450665,1773654643854,-500.0,9.13e-05,2]
[408450666,1773654643864,-500.0,9.13e-05,2]
[408450667,1773654643885,-500.0,9.13e-05,2]
[408450668,1773654643905,-500.0,9.13e-05,2]
[408450669,1773654643915,-500.0,9.13e-05,2]
[408450670,1773654643924,-500.0,9.13e-05,2]
[408450671,1773654643933,-500.0,9.13e-05,2]
[408450672,1773654643942,-500.0,9.13e-05,2]
[408450673,1773654643951,-500.0,9.13e-05,2]
[408450674,1773654643959,-384.75287125,9.13e-05,2]
[408450675,1773654643971,-115.24712875,9.13e-05,2]
[408450676,1773654643980,-500.0,9.13e-05,2]
[408450677,1773654643989,-500.0,9.13e-05,2]
[408450678,1773654643999,-500.0,9.13e-05,2]
[408450679,1773654644008,-500.0,9.13e-05,2]
[408450680,1773654644017,-500.0,9.13e-05,2]
[408450681,1773654644026,-432.56565605,9.13e-05,2]
[408450682,1773654644035,-500.0,9.13e-05,2]
[408450683,1773654644044,-500.0,9.13e-05,2]
[408450684,1773654644053,-500.0,9.13e-05,2]
[408450685,1773654644062,-500.0,9.13e-05,2]
[408450686,1773654644071,-500.0,9.13e-05,2]
[408450687,1773654644081,-500.0,9.13e-05,2]
[408450688,1773654644090,-500.0,9.13e-05,2]
[408450689,1773654644099,-500.0,9.13e-05,2]
[408450690,1773654644108,-500.0,9.13e-05,2]
[408450691,1773654644117,-500.0,9.13e-05,2]
[408450692,1773654644126,-500.0,9.13e-05,2]
[408450693,1773654644135,-500.0,9.13e-05,2]
[408450694,1773654644145,-500.0,9.13e-05,2]
[408450695,1773654644154,-500.0,9.13e-05,2]
[408450696,1773654644163,-500.0,9.13e-05,2]
[408450697,1773654644173,-500.0,9.13e-05,2]
[408450698,1773654644182,-500.0,9.13e-05,2]
[408450699,1773654644192,-500.0,9.13e-05,2]
[408450700,1773654644201,-500.0,9.13e-05,2]
[408450701,1773654644212,-500.0,9.13e-05,2]
[408450702,1773654644223,-500.0,9.13e-05,2]
[408450703,1773654644232,-500.0,9.13e-05,2]
[408450704,1773654644243,-500.0,9.13e-05,2]
[408450705,1773654644254,-500.0,9.13e-05,2]
[408450706,1773654644264,-500.0,9.13e-05,2]
[408450707,1773654644273,-500.0,9.13e-05,2]
[408450708,1773654644283,-500.0,9.13e-05,2]
[408450709,1773654644292,-500.0,9.13e-05,2]
[408450710,1773654644302,-500.0,9.13e-05,2]
[408450711,1773654644312,-500.0,9.13e-05,2]
[408450712,1773654644324,-500.0,9.13e-05,2]
[408450713,1773654644334,-500.0,9.13e-05,2]
[408450714,1773654644344,-500.0,9.13e-05,2]
[408450715,1773654644355,-500.0,9.13e-05,2]
[408450716,1773654644364,-500.0,9.13e-05,2]
[408450717,1773654644374,-500.0,9.13e-05,2]
[408450718,1773654644383,-500.0,9.13e-05,2]
[408450719,1773654644394,-500.0,9.13e-05,2]
[408450720,1773654644403,-500.0,9.13e-05,2]
[408450721,1773654644412,-500.0,9.13e-05,2]
[408450722,1773654644422,-500.0,9.13e-05,2]
[408450723,1773654644431,-500.0,9.13e-05,2]
[408450724,1773654644440,-500.0,9.13e-05,2]
[408450725,1773654644449,-500.0,9.13e-05,2]
[408450726,1773654644458,-500.0,9.13e-05,2]
[408450727,1773654644467,-500.0,9.13e-05,2]
[408450728,1773654644476,-500.0,9.13e-05,2]
[408450729,1773654644485,-500.0,9.13e-05,2]
[408450730,1773654644495,-500.0,9.13e-05,2]
[408450731,1773654644504,-500.0,9.13e-05,2]
[408450732,1773654644513,-500.0,9.13e-05,2]
[408450733,1773654644523,-500.0,9.13e-05,2]
[408450734,1773654644532,-500.0,9.13e-05,2]
[408450735,1773654644541,-500.0,9.13e-05,2]
[408450736,1773654644550,-500.0,9.13e-05,2]
[408450737,1773654644560,-500.0,9.13e-05,2]
[408450738,1773654644570,-500.0,9.13e-05,2]
[408450739,1773654644579,-500.0,9.13e-05,2]
[408450740,1773654644588,-500.0,9.13e-05,2]
[408450741,1773654644598,-500.0,9.13e-05,2]
[408450742,1773654644608,-500.0,9.13e-05,2]
[408450743,1773654644617,-595.15019058,9.13e-05,2]
[408450744,1773654644626,-500.0,9.13e-05,2]
[408450745,1773654644635,-500.0,9.13e-05,2]
[408450746,1773654644644,-500.0,9.13e-05,2]
[408450747,1773654644653,-500.0,9.13e-05,2]
[408450748,1773654644662,-600.0,9.13e-05,2]
[408450749,1773654644672,-500.0,9.13e-05,2]
[408450750,1773654644681,-500.0,9.13e-05,2]
[408450751,1773654644690,-500.0,9.13e-05,2]
[408450752,1773654644699,-500.0,9.13e-05,2]
[408450753,1773654644710,-500.0,9.131e-05,2]
[408450754,1773654644719,-9866.59030271,9.132e-05,2]
[408450755,1773654644728,-778.61562755,9.132e-05,2]
[408450756,1773654644738,-720.0,9.15e-05,2]
[408450757,1773654644748,-357.469701,9.216e-05,2]
[408450758,1773654644757,-527.0,9.236e-05,2]
[408450759,1773654644767,-218.58662236,9.309e-05,2]
[408450760,1773654644776,-242.70062666,9.4e-05,2]
[408450761,1773654644785,-397.21222621,9.4e-05,2]
[408450762,1773654644794,-430.54981722,9.4e-05,2]
[408450763,1773654644803,-446.56224027,9.4e-05,2]
[408450764,1773654644812,-168.2139083,9.4e-05,2]
[408450765,1773654644821,-208.34322684,9.4e-05,2]
[408450766,1773654644831,-198.82573594,9.4e-05,2]
[408450767,1773654644840,-205.3864616,9.4e-05,2]
[408450768,1773654644850,-500.0,9.405e-05,2]
[408450769,1773654644859,-13906.00055072,9.5e-05,2]
[408450770,1773654644869,-892.0,9.564e-05,2]
[408450771,1773654644878,-500.0,9.573e-05,2]
[408450772,1773654644888,-500.0,9.573e-05,2]
[408450773,1773654644897,-500.0,9.596e-05,2]
[408450774,1773654644906,-500.0,9.596e-05,2]
[408450775,1773654644915,-500.0,9.596e-05,2]
[408450776,1773654644924,-500.0,9.596e-05,2]
[408450777,1773654644934,-262.91618007,9.596e-05,2]
[408450778,1773654644943,-301.20620932,9.596e-05,2]
[408450779,1773654644953,-500.0,9.596e-05,2]
[408450780,1773654644962,-500.0,9.596e-05,2]
[408450781,1773654644971,-500.0,9.596e-05,2]
[408450782,1773654644981,-500.0,9.596e-05,2]
[408450783,1773654644990,-500.0,9.596e-05,2]
[408450784,1773654644999,-500.0,9.596e-05,2]
[408450785,1773654645008,-500.0,9.596e-05,2]
[408450786,1773654645018,-500.0,9.596e-05,2]
[408450787,1773654645027,-500.0,9.596e-05,2]
[408450788,1773654645036,-500.0,9.596e-05,2]
[408450789,1773654645046,-500.0,9.596e-05,2]
[408450790,1773654645056,-500.0,9.596e-05,2]
[408450791,1773654645066,-500.0,9.596e-05,2]
[408450792,1773654645075,-550.0,9.596e-05,2]
[408450793,1773654645085,-88588.85758785,9.599e-05,2]
[408450794,1773654645098,-8920.02511661,9.599e-05,2]
[408450795,1773654645110,-4599.58984901,9.599e-05,2]
[408450807,1773654646550,-2679.26710578,8.942e-05,2]
[408450808,1773654646560,-1797.06074712,9.599e-05,2]
[408450809,1773654646571,-39938.83137432,9.599e-05,2]
[408450813,1773655202419,161.2,2e-05,2]
[408450847,1773655832404,-167.6503843,8.471e-05,2]
[408450848,1773655832423,-539.0,8.471e-05,2]
[408450849,1773655832434,-151.0,9.128e-05,2]
[408450850,1773655832443,-501.58350037,9.383e-05,2]
[408450851,1773655832453,-501.55993991,9.383e-05,2]
[408450852,1773655832462,-504.23680696,9.383e-05,2]
[408450853,1773655832471,-500.0,9.383e-05,2]
[408450854,1773655832480,-212.32534164,9.383e-05,2]
[408450855,1773655832490,-500.0,9.383e-05,2]
[408450856,1773655832499,-500.71927125,9.383e-05,2]
[408450857,1773655832508,-2616.53867111,9.39e-05,2]
[408450858,1773655832525,-3665.0,9.39e-05,2]
[408450859,1773655832536,-1421.2607696,9.39e-05,2]
[408450860,1773655832549,-650.98336948,9.39e-05,2]
[408450944,1773655838495,-5552.21774051,9.39e-05,2]
[408450946,1773655838504,-497.18965986,9.4e-05,2]
[408450948,1773655838513,-1197.17057118,9.4e-05,2]
[408450950,1773655838523,-1058.13072307,9.4e-05,2]
[408450952,1773655838531,-1172.70167761,9.4e-05,2]
[408450954,1773655838541,-50000.0,9.402e-05,2]
[408450956,1773655838550,-500.0,9.402e-05,2]
[408450958,1773655838559,-500.0,9.402e-05,2]
[408450960,1773655838568,-500.0,9.402e-05,2]
[408450962,1773655838578,-500.0,9.402e-05,2]
[408450964,1773655838587,-262.91618007,9.402e-05,2]
[408450966,1773655838596,-500.0,9.402e-05,2]
[408450968,1773655838606,-500.0,9.402e-05,2]
[408450970,1773655838617,-500.0,9.402e-05,2]
[408450972,1773655838627,-500.0,9.402e-05,2]
[408450974,1773655838636,-500.0,9.402e-05,2]
[408450976,1773655838646,-500.0,9.402e-05,2]
[408450978,1773655838655,-500.0,9.402e-05,2]
[408450980,1773655838664,-500.0,9.402e-05,2]
[408450982,1773655838674,-561.20620932,9.402e-05,2]
[408450984,1773655838683,-500.0,9.402e-05,2]
[408450986,1773655838693,-500.0,9.402e-05,2]
[408450988,1773655838706,-500.0,9.402e-05,2]
[408450989,1773655838716,-500.0,9.402e-05,2]
[408450991,1773655838725,-500.0,9.402e-05,2]
[408450993,1773655838735,-500.0,9.402e-05,2]
[408450995,1773655838743,-500.0,9.402e-05,2]
[408450997,1773655838753,-500.0,9.402e-05,2]
[408450999,1773655838763,-500.0,9.402e-05,2]
[408451001,1773655838774,-500.0,9.402e-05,2]
[408451003,1773655838783,-500.0,9.402e-05,2]
[408451005,1773655838793,-500.0,9.402e-05,2]
[408451007,1773655838802,-443.21735072,9.402e-05,2]
[408451009,1773655838811,-180.20958,9.402e-05,2]
[408451011,1773655838820,-500.0,9.402e-05,2]
[408451013,1773655838829,-500.0,9.402e-05,2]
[408451016,1773655838842,-500.0,9.402e-05,2]
[408451018,1773655838852,-500.0,9.402e-05,2]
[408451020,1773655838861,-500.0,9.402e-05,2]
[408451022,1773655838871,-500.0,9.402e-05,2]
[408451024,1773655838881,-500.0,9.402e-05,2]
[408451026,1773655838891,-500.0,9.402e-05,2]
[408451028,1773655838901,-500.0,9.402e-05,2]
[408451029,1773655838910,-500.0,9.402e-05,2]
[408451031,1773655838922,-500.0,9.402e-05,2]
[408451032,1773655838931,-500.0,9.402e-05,2]
[408451033,1773655838940,-500.0,9.402e-05,2]
[408451034,1773655838950,-500.0,9.402e-05,2]
[408451035,1773655838959,-500.0,9.402e-05,2]
[408451036,1773655838969,-500.0,9.402e-05,2]
[408451037,1773655838979,-500.0,9.402e-05,2]
[408451038,1773655838990,-500.0,9.402e-05,2]
[408451039,1773655839000,-500.0,9.402e-05,2]
[408451040,1773655839010,-500.0,9.402e-05,2]
[408451041,1773655839020,-500.0,9.402e-05,2]
[408451042,1773655839030,-500.0,9.402e-05,2]
[408451043,1773655839039,-500.0,9.402e-05,2]
[408451044,1773655839049,-500.0,9.402e-05,2]
[408451045,1773655839059,-500.0,9.402e-05,2]
[408451046,1773655839068,-500.0,9.402e-05,2]
[408451047,1773655839078,-500.0,9.402e-05,2]
[408451048,1773655839087,-500.0,9.402e-05,2]
[408451049,1773655839097,-500.0,9.402e-05,2]
[408451050,1773655839106,-500.0,9.402e-05,2]
[408451051,1773655839115,-500.0,9.402e-05,2]
[408451052,1773655839124,-500.0,9.402e-05,2]
[408451053,1773655839134,-500.0,9.402e-05,2]
[408451054,1773655839143,-500.0,9.402e-05,2]
[408451055,1773655839153,-162.28465048,9.402e-05,2]
[408451056,1773655839163,-252.06739756,9.402e-05,2]
[408451057,1773655839172,-575.42016924,9.402e-05,2]
[408451058,1773655839182,-500.0,9.402e-05,2]
[408451059,1773655839191,-500.0,9.402e-05,2]
[408451060,1773655839201,-500.0,9.402e-05,2]
[408451061,1773655839211,-500.0,9.402e-05,2]
[408451062,1773655839220,-500.0,9.402e-05,2]
[408451063,1773655839230,-500.0,9.402e-05,2]
[408451064,1773655839240,-500.0,9.402e-05,2]
[408451065,1773655839249,-500.0,9.402e-05,2]
[408451066,1773655839259,-500.0,9.402e-05,2]
[408451067,1773655839268,-500.0,9.402e-05,2]
[408451068,1773655839277,-500.0,9.402e-05,2]
[408451069,1773655839286,-500.0,9.402e-05,2]
[408451070,1773655839297,-500.0,9.402e-05,2]
[408451071,1773655839307,-500.0,9.402e-05,2]
[408451072,1773655839317,-500.0,9.402e-05,2]
[408451073,1773655839329,-500.0,9.402e-05,2]
[408451074,1773655839339,-509.70793698,9.402e-05,2]
[408451075,1773655839348,-500.0,9.402e-05,2]
[408451076,1773655839358,-500.0,9.402e-05,2]
[408451077,1773655839368,-340.0,9.402e-05,2]
[408451078,1773655839378,-500.0,9.402e-05,2]